bitfinex/quotes_ETHUSD_20230903
["timestamp","ask_amount","ask_price","bid_price","bid_amount"]
[1693737052409,2.23715479,1634.2,1634.1,1.00399162]
[1693737052552,0.64252046,1634.2,1634.1,1.00399162]
[1693737052957,2.23715479,1634.2,1634.1,1.00399162]
[1693737053178,0.64252046,1634.2,1634.1,1.00399162]
[1693737053354,2.23715479,1634.2,1634.1,1.00399162]
[1693737053555,0.64252046,1634.2,1634.1,1.00399162]
[1693737053777,2.23715479,1634.2,1634.1,1.00399162]
[1693737054155,3.30024434,1634.2,1634.1,1.00399162]
[1693737054379,0.64252046,1634.2,1634.1,1.00399162]
[1693737054589,2.23715479,1634.2,1634.1,1.00399162]
[1693737054789,0.64252046,1634.2,1634.1,1.00399162]
[1693737054981,2.23715479,1634.2,1634.1,1.00399162]
[1693737055189,0.64252046,1634.2,1634.1,1.00399162]
[1693737055484,2.23715479,1634.2,1634.1,1.00399162]
[1693737055688,0.64252046,1634.2,1634.1,1.00399162]
[1693737055885,2.23715479,1634.2,1634.1,1.00399162]
[1693737056061,0.64252046,1634.2,1634.1,1.00399162]
[1693737056261,2.23715479,1634.2,1634.1,1.00399162]
[1693737056462,0.64252046,1634.2,1634.1,1.00399162]
[1693737056661,2.23715479,1634.2,1634.1,1.00399162]
[1693737056887,0.64252046,1634.2,1634.1,1.00399162]
[1693737057065,2.23715479,1634.2,1634.1,1.00399162]
[1693737057270,3.30024434,1634.2,1634.1,1.00399162]
[1693737057476,0.64252046,1634.2,1634.1,1.00399162]
[1693737057677,2.23715479,1634.2,1634.1,1.00399162]
[1693737057992,0.64252046,1634.2,1634.1,1.00399162]
[1693737058197,2.23715479,1634.2,1634.1,1.00399162]
[1693737058502,0.64252046,1634.2,1634.1,1.00399162]
[1693737058694,2.23715479,1634.2,1634.1,1.00399162]
[1693737059103,0.64252046,1634.2,1634.1,1.00399162]
[1693737059279,2.23715479,1634.2,1634.1,1.00399162]
[1693737059602,3.30024434,1634.2,1634.1,1.00399162]
[1693737059968,0.64252046,1634.2,1634.1,1.00399162]
[1693737060180,2.23715479,1634.2,1634.1,1.00399162]
[1693737060369,0.64252046,1634.2,1634.1,1.00399162]
[1693737060568,2.23715479,1634.2,1634.1,1.00399162]
[1693737060769,0.64252046,1634.2,1634.1,1.00399162]
[1693737060991,2.23715479,1634.2,1634.1,1.00399162]
[1693737061189,0.64252046,1634.2,1634.1,1.00399162]
[1693737061387,2.23715479,1634.2,1634.1,1.00399162]
[1693737061589,0.64252046,1634.2,1634.1,1.00399162]
[1693737061777,2.23715479,1634.2,1634.1,1.00399162]
[1693737061987,0.64252046,1634.2,1634.1,1.00399162]
[1693737062188,2.23715479,1634.2,1634.1,1.00399162]
[1693737062375,0.64252046,1634.2,1634.1,1.00399162]
[1693737062566,2.23715479,1634.2,1634.1,1.00399162]
[1693737062769,0.64252046,1634.2,1634.1,1.00399162]
[1693737063171,2.23715479,1634.2,1634.1,1.00399162]
[1693737063371,0.64252046,1634.2,1634.1,1.00399162]
[1693737063699,2.23715479,1634.2,1634.1,1.00399162]
[1693737063905,3.30024434,1634.2,1634.1,1.00399162]
[1693737064102,0.64252046,1634.2,1634.1,1.00399162]
[1693737064408,0.6426688,1634.2,1634.1,1.00399162]
[1693737064610,2.23730724,1634.2,1634.1,1.00399162]
[1693737067800,2.23730724,1634.2,1634.1,1.49293492]
[1693737070620,2.23730724,1634.2,1634.1,1.00399162]
[1693737124637,2.23730724,1634.2,1634.1,0.99730657]
[1693737125543,2.23730724,1634.2,1634.1,1.00341855]
[1693737129440,3.20131044,1634.2,1634.1,1.00341855]
[1693737129648,1.606672,1634.2,1634.1,1.00341855]
[1693737136859,3.30039953,1634.2,1634.1,1.00341855]
[1693737137353,2.23730724,1634.2,1634.1,1.00341855]
[1693737137563,0.6426688,1634.2,1634.1,1.00341855]
[1693737137856,2.23730724,1634.2,1634.1,1.00341855]
[1693737138057,0.6426688,1634.2,1634.1,1.00341855]
[1693737138424,2.23730724,1634.2,1634.1,1.00341855]
[1693737138621,0.6426688,1634.2,1634.1,1.00341855]
[1693737138850,2.23730724,1634.2,1634.1,1.00341855]
[1693737139156,0.6426688,1634.2,1634.1,1.00341855]
[1693737139658,2.23730724,1634.2,1634.1,1.00341855]
[1693737139957,3.30039953,1634.2,1634.1,1.00341855]
[1693737140162,0.6426688,1634.2,1634.1,1.00341855]
[1693737140333,2.23730724,1634.2,1634.1,1.00341855]
[1693737140534,0.6426688,1634.2,1634.1,1.00341855]
[1693737141069,2.23730724,1634.2,1634.1,1.00341855]
[1693737141231,0.6426688,1634.2,1634.1,1.00341855]
[1693737141741,2.23730724,1634.2,1634.1,1.00341855]
[1693737141941,0.6426688,1634.2,1634.1,1.00341855]
[1693737142541,2.23730724,1634.2,1634.1,1.00341855]
[1693737142761,0.6426688,1634.2,1634.1,1.00341855]
[1693737143058,2.23730724,1634.2,1634.1,1.00341855]
[1693737143259,0.6426688,1634.2,1634.1,1.00341855]
[1693737143466,2.23730724,1634.2,1634.1,1.00341855]
[1693737143760,3.30039953,1634.2,1634.1,1.00341855]
[1693737143973,0.6426688,1634.2,1634.1,1.00341855]
[1693737144126,2.23730724,1634.2,1634.1,1.00341855]
[1693737144329,0.6426688,1634.2,1634.1,1.00341855]
[1693737144765,2.23730724,1634.2,1634.1,1.00341855]
[1693737144967,0.6426688,1634.2,1634.1,1.00341855]
[1693737145156,2.23730724,1634.2,1634.1,1.00341855]
[1693737145352,0.6426688,1634.2,1634.1,1.00341855]
[1693737145668,2.23730724,1634.2,1634.1,1.00341855]
[1693737145840,3.30039953,1634.2,1634.1,1.00341855]
[1693737146159,0.6426688,1634.2,1634.1,1.00341855]
[1693737146462,2.23730724,1634.2,1634.1,1.00341855]
[1693737146662,0.6426688,1634.2,1634.1,1.00341855]
[1693737147161,2.23730724,1634.2,1634.1,1.00341855]
[1693737147367,0.6426688,1634.2,1634.1,1.00341855]
[1693737148189,2.23730724,1634.2,1634.1,1.00341855]
[1693737148371,0.6426688,1634.2,1634.1,1.00341855]
[1693737148558,2.23730724,1634.2,1634.1,1.00341855]
[1693737148888,3.30039953,1634.2,1634.1,1.00341855]
[1693737149087,0.6426688,1634.2,1634.1,1.00341855]
[1693737149288,2.23730724,1634.2,1634.1,1.00341855]
[1693737149488,0.6426688,1634.2,1634.1,1.00341855]
[1693737149698,2.23730724,1634.2,1634.1,1.00341855]
[1693737149863,0.6426688,1634.2,1634.1,1.00341855]
[1693737150065,0.64267019,1634.2,1634.1,1.00341855]
[1693737150272,2.23733521,1634.2,1634.1,1.00341855]
[1693737160308,4.2644505,1634.2,1634.1,1.00341855]
[1693737160506,3.30044522,1634.2,1634.1,1.00341855]
[1693737160708,4.2644505,1634.2,1634.1,1.00341855]
[1693737160911,1.60667547,1634.2,1634.1,1.00341855]
[1693737161111,4.2644505,1634.2,1634.1,1.00341855]
[1693737161487,1.60667547,1634.2,1634.1,1.00341855]
[1693737161788,4.2644505,1634.2,1634.1,1.00341855]
[1693737161994,3.20134049,1634.2,1634.1,1.00341855]
[1693737162194,4.2644505,1634.2,1634.1,1.00341855]
[1693737162394,1.60667547,1634.2,1634.1,1.00341855]
[1693737162606,4.2644505,1634.2,1634.1,1.00341855]
[1693737163314,1.60667547,1634.2,1634.1,1.00341855]
[1693737163517,4.2644505,1634.2,1634.1,1.00341855]
[1693737164205,1.60667547,1634.2,1634.1,1.00341855]
[1693737164408,4.2644505,1634.2,1634.1,1.00341855]
[1693737165011,1.60667547,1634.2,1634.1,1.00341855]
[1693737165218,4.2644505,1634.2,1634.1,1.00341855]
[1693737165913,4.26451723,1634.2,1634.1,1.00341855]
[1693737166086,1.60673973,1634.2,1634.1,1.00341855]
[1693737166288,4.26451723,1634.2,1634.1,1.00341855]
[1693737166488,1.60673973,1634.2,1634.1,1.00341855]
[1693737171633,3.30047339,1634.2,1634.1,1.00341855]
[1693737172026,2.23736239,1634.2,1634.1,1.00341855]
[1693737172225,3.30047339,1634.2,1634.1,1.00341855]
[1693737172622,1.60673973,1634.2,1634.1,1.00341855]
[1693737172927,4.26451723,1634.2,1634.1,1.00341855]
[1693737173120,3.20140623,1634.2,1634.1,1.00341855]
[1693737173513,4.26451723,1634.2,1634.1,1.00341855]
[1693737173911,1.60673973,1634.2,1634.1,1.00341855]
[1693737174116,4.26451723,1634.2,1634.1,1.00341855]
[1693737174337,1.60673973,1634.2,1634.1,1.00341855]
[1693737174529,4.26451723,1634.2,1634.1,1.00341855]
[1693737174724,1.60673973,1634.2,1634.1,1.00341855]
[1693737195653,4.26451723,1634.2,1634.1,1.00341855]
[1693737195855,1.60673973,1634.2,1634.1,1.00341855]
[1693737207861,1.60673973,1634.2,1634.1,0.97372062]
[1693737215271,0.96404384,1634.2,1634.1,0.97372062]
[1693737215440,3.62182134,1634.2,1634.1,0.97372062]
[1693737215640,0.96404384,1634.2,1634.1,0.97372062]
[1693737221076,1.60677218,1634.2,1634.1,0.97372062]
[1693737270389,0.64272834,1634.2,1634.1,0.97372062]
[1693737270584,2.23739484,1634.2,1634.1,0.97372062]
[1693737270787,0.64272834,1634.2,1634.1,0.97372062]
[1693737271257,2.23739484,1634.2,1634.1,0.97372062]
[1693737280510,1.70583934,1634.2,1634.1,1.49866268]
[1693737280706,0.64272834,1634.3,1634.1,7.66966711]
[1693737280883,3.30025376,1634.3,1634.1,1.49866268]
[1693737281089,0.64272834,1634.3,1634.1,1.49866268]
[1693737284421,1.60677218,1634.4,1634.1,1.49866268]
[1693737284993,1.60677218,1634.4,1634.1,3.26756268]
[1693737285192,1.60677218,1634.4,1634.2,0.32675627]
[1693737285603,1.60677218,1634.4,1634.2,3.96235219]
[1693737290427,0.64272834,1634.4,1634.2,3.96235219]
[1693737304374,0.64272834,1634.4,1634.2,3.63559592]
[1693737309600,1.60677218,1634.5,1634.2,3.63559592]
[1693737309763,0.64272834,1634.5,1634.2,3.63559592]
[1693737309952,0.64272834,1634.5,1634.2,5.28469592]
[1693737310273,1.70565847,1634.5,1634.2,5.28469592]
[1693737310482,0.64272834,1634.5,1634.3,0.52846959]
[1693737310778,0.64272834,1634.5,1634.3,1.49573688]
[1693737311682,0.64272834,1634.5,1634.4,0.00608737]
[1693737312047,2.23712851,1634.5,1634.4,0.00608737]
[1693737312250,3.30006042,1634.5,1634.4,0.00608737]
[1693737312695,3.30006042,1634.5,1634.3,0.96726729]
[1693737312850,0.64272834,1634.5,1634.3,1.49509402]
[1693737313192,1.70566255,1634.5,1634.3,1.49509402]
[1693737313353,0.64272834,1634.5,1634.3,1.49509402]
[1693737313556,1.70566293,1634.5,1634.3,1.49509402]
[1693737315682,1.70566293,1634.5,1634.4,0.00608737]
[1693737315848,0.64272834,1634.5,1634.4,0.00608737]
[1693737316045,0.64272834,1634.5,1634.4,0.97327461]
[1693737316249,3.30005898,1634.5,1634.4,0.97327461]
[1693737323877,4.26410282,1634.5,1634.4,0.97327461]
[1693737324207,3.30005898,1634.5,1634.4,0.97327461]
[1693737324509,4.26410282,1634.5,1634.4,0.97327461]
[1693737334411,3.30005898,1634.5,1634.4,0.97327461]
[1693737335820,2.23712439,1634.5,1634.4,0.97327461]
[1693737337422,3.20116823,1634.5,1634.4,0.97327461]
[1693737337590,3.30005898,1634.5,1634.4,0.97327461]
[1693737337790,2.23712439,1634.5,1634.4,0.97327461]
[1693737337993,3.20116823,1634.5,1634.4,0.97327461]
[1693737338319,2.23712439,1634.5,1634.4,0.97327461]
[1693737338522,3.20116823,1634.5,1634.4,0.97327461]
[1693737340127,2.23712439,1634.5,1634.4,0.97327461]
[1693737341204,3.20116823,1634.5,1634.4,0.97327461]
[1693737343416,3.20008167,1634.5,1634.4,0.97327461]
[1693737343622,1.60569356,1634.5,1634.4,0.97327461]
[1693737343799,4.26300708,1634.5,1634.4,0.97327461]
[1693737344002,3.20008167,1634.5,1634.4,0.97327461]
[1693737349341,3.20008167,1634.5,1634.4,1.29600717]
[1693737353236,3.62072966,1634.5,1634.4,1.29600717]
[1693737353824,2.55780425,1634.5,1634.4,1.29600717]
[1693737362468,2.55780425,1634.5,1634.4,0.97327461]
[1693737374632,4.90528451,1634.5,1634.4,0.97327461]
[1693737380986,3.3108964,1634.5,1634.4,0.97327461]
[1693737381316,2.24797099,1634.5,1634.4,0.97327461]
[1693737381889,4.90528451,1634.5,1634.4,0.97327461]
[1693737382414,3.8423591,1634.5,1634.4,0.97327461]
[1693737382615,3.3108964,1634.5,1634.4,0.97327461]
[1693737382922,4.90528451,1634.5,1634.4,0.97327461]
[1693737383085,2.24797099,1634.5,1634.4,0.97327461]
[1693737383286,4.90528451,1634.5,1634.4,0.97327461]
[1693737383489,2.24797099,1634.5,1634.4,0.97327461]
[1693737383981,3.11166124,1634.5,1634.4,0.97327461]
[1693737384186,5.76897476,1634.5,1634.4,0.97327461]
[1693737404935,4.90528451,1634.5,1634.4,0.97327461]
[1693737412769,3.3108964,1634.5,1634.4,0.97327461]
[1693737412969,4.90528451,1634.5,1634.4,0.97327461]
[1693737413471,2.24797099,1634.5,1634.4,0.97327461]
[1693737416684,6.06780526,1634.5,1634.4,0.97327461]
[1693737416863,1.28455485,1634.5,1634.4,0.97327461]
[1693737417480,6.06780526,1634.5,1634.4,0.97327461]
[1693737431094,2.34748026,1634.5,1634.4,0.97327461]
[1693737431379,2.87894296,1634.5,1634.4,0.97327461]
[1693737431584,6.06780526,1634.5,1634.4,0.97327461]
[1693737432593,1.28455485,1634.5,1634.4,0.97327461]
[1693737432812,6.06780526,1634.5,1634.4,0.97327461]
[1693737445441,4.90596644,1634.5,1634.4,0.97327461]
[1693737445937,2.24865292,1634.5,1634.4,0.97327461]
[1693737446236,0.96409807,1634.5,1634.4,0.97327461]
[1693737446436,2.55848618,1634.5,1634.4,0.97327461]
[1693737446635,0.96409807,1634.5,1634.4,0.97327461]
[1693737446835,2.55848618,1634.5,1634.4,0.97327461]
[1693737447038,0.96409807,1634.5,1634.4,0.97327461]
[1693737447530,3.62141159,1634.5,1634.4,0.97327461]
[1693737447943,0.96409807,1634.5,1634.4,0.97327461]
[1693737448350,3.62128661,1634.5,1634.4,0.97327461]
[1693737448848,2.55834447,1634.5,1634.4,0.97327461]
[1693737449058,3.62128661,1634.5,1634.4,0.97327461]
[1693737449260,2.55834447,1634.5,1634.4,0.97327461]
[1693737455265,3.62128661,1634.5,1634.4,0.97327461]
[1693737455464,2.55834447,1634.5,1634.4,0.97327461]
[1693737461371,2.55834447,1634.5,1634.4,1.28196717]
[1693737479006,3.2098521,1634.7,1634.4,1.28196717]
[1693737479007,1.6033,1634.7,1634.4,1.28196717]
[1693737479322,0.96365856,1634.5,1634.4,3.57767461]
[1693737479504,2.55806322,1634.5,1634.4,3.57767461]
[1693737492915,4.26360466,1634.5,1634.4,3.57767461]
[1693737493455,3.62099966,1634.5,1634.4,3.57767461]
[1693737493652,4.26360429,1634.5,1634.4,4.14680717]
[1693737493823,3.20066785,1634.5,1634.4,4.14680717]
[1693737495658,3.20066785,1634.5,1634.4,4.1407198]
[1693737495959,3.20066785,1634.5,1634.4,3.17353256]
[1693737496351,3.20066785,1634.5,1634.4,4.19447653]
[1693737496661,3.20066785,1634.5,1634.4,4.20109926]
[1693737501745,2.23700929,1634.5,1634.4,4.20109926]
[1693737505649,2.23680045,1634.5,1634.4,4.20109926]
[1693737513298,2.23680045,1634.5,1634.4,3.6319667]
[1693737528607,1.60615613,1634.5,1634.4,3.6319667]
[1693737528809,4.26338613,1634.5,1634.4,3.6319667]
[1693737528975,2.66904813,1634.5,1634.4,3.6319667]
[1693737529175,1.60615613,1634.5,1634.4,3.6319667]
[1693737529412,4.26338613,1634.5,1634.4,3.6319667]
[1693737530107,1.60615613,1634.5,1634.4,3.6319667]
[1693737530303,4.26338613,1634.5,1634.4,3.6319667]
[1693737530685,1.60615613,1634.5,1634.4,3.6319667]
[1693737530890,4.26338613,1634.5,1634.4,3.6319667]
[1693737531273,1.60615613,1634.5,1634.4,3.6319667]
[1693737531478,4.26338613,1634.5,1634.4,3.6319667]
[1693737531827,1.60615613,1634.5,1634.4,3.6319667]
[1693737540030,4.26389368,1634.5,1634.4,3.6319667]
[1693737540499,3.20100333,1634.5,1634.4,3.6319667]
[1693737553138,3.62122656,1634.5,1634.4,3.6319667]
[1693737553528,0.96400068,1634.5,1634.4,3.6319667]
[1693737553830,3.62122656,1634.5,1634.4,3.6319667]
[1693737554227,0.96400068,1634.5,1634.4,3.6319667]
[1693737554449,4.26391353,1634.5,1634.4,3.6319667]
[1693737554655,3.62122656,1634.5,1634.4,3.6319667]
[1693737555055,0.96400068,1634.5,1634.4,3.6319667]
[1693737555225,3.62122656,1634.5,1634.4,3.6319667]
[1693737555424,0.96400068,1634.5,1634.4,3.6319667]
[1693737555636,3.62122656,1634.5,1634.4,3.6319667]
[1693737555954,0.96400068,1634.5,1634.4,3.6319667]
[1693737556149,4.26391445,1634.5,1634.4,3.6319667]
[1693737556854,1.60668857,1634.5,1634.4,3.6319667]
[1693737557064,4.26391445,1634.5,1634.4,3.6319667]
[1693737557420,1.60668857,1634.5,1634.4,3.6319667]
[1693737557623,4.26391445,1634.5,1634.4,3.6319667]
[1693737557838,1.60668857,1634.5,1634.4,3.6319667]
[1693737558226,4.26391445,1634.5,1634.4,3.6319667]
[1693737558427,3.2010241,1634.5,1634.4,3.6319667]
[1693737571863,3.29991377,1634.5,1634.4,3.6319667]
[1693737572073,3.2010241,1634.5,1634.4,3.6319667]
[1693737572972,3.2010241,1634.5,1634.4,1.0275667]
[1693737573469,3.2010241,1634.5,1634.4,0.00662273]
[1693737573669,3.2010241,1634.5,1634.3,0.48825095]
[1693737573968,0.96400068,1634.5,1634.4,1.02094397]
[1693737574169,1.51134095,1634.5,1634.4,1.02094397]
[1693737574471,4.16867323,1634.5,1634.2,2.6027]
[1693737574678,3.29996042,1634.4,1634.2,2.6027]
[1693737574836,0.64262814,1634.4,1634.2,2.6027]
[1693737575352,3.29996468,1634.4,1634.2,2.6027]
[1693737575552,0.64262814,1634.4,1634.2,2.6027]
[1693737575754,1.70556278,1634.4,1634.2,2.6027]
[1693737575944,3.2999649,1634.4,1634.2,2.6027]
[1693737576270,3.2999649,1634.4,1634.2,3.3794754]
[1693737577673,3.2999649,1634.4,1634.3,0.00663011]
[1693737578369,1.70556278,1634.4,1634.3,0.00663011]
[1693737584671,1.70556278,1634.4,1634.3,1.0276575]
[1693737593003,1.70556278,1634.4,1634.3,1.51692971]
[1693737595908,3.22402882,1634.5,1634.3,1.51692971]
[1693737596576,1.60662882,1634.5,1634.3,1.51692971]
[1693737597171,2.66953746,1634.5,1634.3,1.51692971]
[1693737597408,1.60662882,1634.5,1634.3,1.51692971]
[1693737597707,2.66953614,1634.5,1634.3,1.51692971]
[1693737597895,1.60662882,1634.5,1634.3,1.51692971]
[1693737598099,2.66953628,1634.5,1634.3,1.51692971]
[1693737598330,1.60662882,1634.5,1634.3,1.51692971]
[1693737598636,2.66953616,1634.5,1634.3,1.51692971]
[1693737598838,1.60662882,1634.5,1634.3,1.51692971]
[1693737599313,2.66953595,1634.5,1634.3,1.51692971]
[1693737599512,1.60662882,1634.5,1634.3,1.51692971]
[1693737599711,2.66953585,1634.5,1634.3,1.51692971]
[1693737599911,1.60662882,1634.5,1634.3,1.51692971]
[1693737600107,4.26389612,1634.5,1634.3,1.51692971]
[1693737600320,1.60662882,1634.5,1634.3,1.51692971]
[1693737600514,2.66953559,1634.5,1634.3,1.51692971]
[1693737619472,0.64262814,1634.4,1634.3,1.51692971]
[1693737619833,0.64262814,1634.4,1634.3,2.10657268]
[1693737621381,0.64262814,1634.4,1634.3,1.51692971]
[1693737622081,1.70553491,1634.4,1634.3,1.51692971]
[1693737622284,0.64262814,1634.4,1634.3,1.51692971]
[1693737622581,2.23702886,1634.4,1634.3,1.51692971]
[1693737623985,2.23496886,1634.4,1634.3,1.51692971]
[1693737631785,2.23496886,1634.4,1634.3,1.0276575]
[1693737657704,3.29787563,1634.4,1634.3,1.0276575]
[1693737657899,2.23496886,1634.4,1634.3,1.0276575]
[1693737658101,3.29787563,1634.4,1634.3,1.0276575]
[1693737658673,2.23496886,1634.4,1634.3,1.0276575]
[1693737672711,0.96400068,1634.4,1634.3,1.0276575]
[1693737672917,4.32456999,1634.4,1634.3,0.00663011]
[1693737673328,4.32456999,1634.4,1634.3,1.06495191]
[1693737673899,4.32456999,1634.4,1634.3,0.00663011]
[1693737674741,4.32456999,1634.4,1634.2,2.6027]
[1693737674943,1.70541104,1634.3,1634.2,2.6027]
[1693737675415,0.64250427,1634.3,1634.2,2.6027]
[1693737675619,1.70541104,1634.3,1634.2,2.6027]
[1693737675815,0.64250427,1634.3,1634.2,2.60951103]
[1693737676221,1.5747,1634.5,1634.2,2.60951103]
[1693737678216,0.64240321,1634.3,1634.2,2.60951103]
[1693737678513,1.70540049,1634.3,1634.2,2.60951103]
[1693737678709,0.64240321,1634.3,1634.2,2.60951103]
[1693737678937,1.70540049,1634.3,1634.2,2.60951103]
[1693737679325,0.64240321,1634.3,1634.2,2.60951103]
[1693737679526,1.70540049,1634.3,1634.2,2.60951103]
[1693737680545,0.64240321,1634.3,1634.2,2.60951103]
[1693737680850,1.70540049,1634.3,1634.2,2.60951103]
[1693737681012,0.64240321,1634.3,1634.2,2.60951103]
[1693737681218,1.70540049,1634.3,1634.2,2.60951103]
[1693737681413,0.64240321,1634.3,1634.2,2.60951103]
[1693737681640,1.70540049,1634.3,1634.2,2.60951103]
[1693737682041,0.64240321,1634.3,1634.2,2.60951103]
[1693737682230,1.06299728,1634.3,1634.2,2.60951103]
[1693737682545,0.64240321,1634.3,1634.2,2.60951103]
[1693737685519,2.66900531,1634.4,1634.2,2.60951103]
[1693737687260,1.70540049,1634.3,1634.2,2.60951103]
[1693737687618,0.64240321,1634.3,1634.2,2.60951103]
[1693737688451,2.66900531,1634.4,1634.2,2.60951103]
[1693737688640,1.60600803,1634.4,1634.2,2.60951103]
[1693737688836,2.66900929,1634.4,1634.2,2.60951103]
[1693737689035,4.26351117,1634.4,1634.2,2.60951103]
[1693737689235,1.60600803,1634.4,1634.2,2.60951103]
[1693737689436,4.26351247,1634.4,1634.2,2.60951103]
[1693737689650,1.60600803,1634.4,1634.2,2.60951103]
[1693737689815,2.66900963,1634.4,1634.3,1.0583218]
[1693737690018,4.26351106,1634.4,1634.3,1.0583218]
[1693737690819,4.26351106,1634.4,1634.3,1.06512456]
[1693737695780,3.62110785,1634.4,1634.3,1.06512456]
[1693737703681,3.62110785,1634.4,1634.3,1.56551023]
[1693737711490,3.62110785,1634.4,1634.3,1.06512456]
[1693737716875,2.55810625,1634.4,1634.3,1.06512456]
[1693737717795,3.84291268,1634.4,1634.3,1.06512456]
[1693737723902,3.62110785,1634.4,1634.3,1.06512456]
[1693737724399,2.24841125,1634.4,1634.3,1.06512456]
[1693737724605,3.62110785,1634.4,1634.3,1.06512456]
[1693737724909,4.90591428,1634.4,1634.3,1.06512456]
[1693737725100,2.24841125,1634.4,1634.3,1.06512456]
[1693737725395,3.62110785,1634.4,1634.3,1.06512456]
[1693737725967,0.96360482,1634.4,1634.3,1.06512456]
[1693737726173,3.62110785,1634.4,1634.3,1.06512456]
[1693737726584,2.55810625,1634.4,1634.3,1.06512456]
[1693737727307,0.96360482,1634.4,1634.3,1.06512456]
[1693737727610,4.90591428,1634.4,1634.3,1.06512456]
[1693737727983,2.24841125,1634.4,1634.3,1.06512456]
[1693737728192,4.90591428,1634.4,1634.3,1.06512456]
[1693737728373,3.31141285,1634.4,1634.3,1.06512456]
[1693737728578,3.84291268,1634.4,1634.3,1.06512456]
[1693737728884,2.24841125,1634.4,1634.3,1.06512456]
[1693737729090,4.90591428,1634.4,1634.3,1.06512456]
[1693737729295,2.02660642,1634.4,1634.3,1.06512456]
[1693737729490,3.62110785,1634.4,1634.3,1.06512456]
[1693737729695,4.90591428,1634.4,1634.3,1.06512456]
[1693737729900,2.24841125,1634.4,1634.3,1.06512456]
[1693737730106,4.90591428,1634.4,1634.3,1.06512456]
[1693737730415,2.24841125,1634.4,1634.3,1.06512456]
[1693737730622,4.90591428,1634.4,1634.3,1.06512456]
[1693737730786,2.24841125,1634.4,1634.3,1.06512456]
[1693737730983,4.90591428,1634.4,1634.3,1.06512456]
[1693737731184,2.24841125,1634.4,1634.3,1.06512456]
[1693737801563,4.90591428,1634.4,1634.3,1.06512456]
[1693737801959,2.24841125,1634.4,1634.3,1.06512456]
[1693737843521,3.62110785,1634.4,1634.3,1.06512456]
[1693737843917,2.55810625,1634.4,1634.3,1.06512456]
[1693737844119,3.62110785,1634.4,1634.3,1.06512456]
[1693737844320,2.55810625,1634.4,1634.3,1.06512456]
[1693737844622,3.62110785,1634.4,1634.3,1.06512456]
[1693737845024,2.55810625,1634.4,1634.3,1.06512456]
[1693737845224,0.96360482,1634.4,1634.3,1.06512456]
[1693737845426,3.62110785,1634.4,1634.3,1.06512456]
[1693737845796,2.55810625,1634.4,1634.3,1.06512456]
[1693737851730,3.62110785,1634.4,1634.3,1.06512456]
[1693737852411,2.55810625,1634.4,1634.3,1.06512456]
[1693737852613,3.62110785,1634.4,1634.3,1.06512456]
[1693737852810,2.55810625,1634.4,1634.3,1.06512456]
[1693737853010,3.62110785,1634.4,1634.3,1.06512456]
[1693737853213,2.55810625,1634.4,1634.3,1.06512456]
[1693737853459,3.62110785,1634.4,1634.3,1.06512456]
[1693737853634,2.55810625,1634.4,1634.3,1.06512456]
[1693737869761,2.55810625,1634.4,1634.3,0.00680276]
[1693737869961,2.55810625,1634.4,1634.3,1.0239784]
[1693737870758,2.55810625,1634.4,1634.3,1.02372172]
[1693737908596,2.55852644,1634.4,1634.3,1.02372172]
[1693737908892,3.62149602,1634.4,1634.3,1.02372172]
[1693737909266,2.55852644,1634.4,1634.3,1.02372172]
[1693737909469,0.96407207,1634.4,1634.3,1.02372172]
[1693737909670,3.62149602,1634.4,1634.3,1.02372172]
[1693737909877,0.96407207,1634.4,1634.3,1.02372172]
[1693737910076,3.62149602,1634.4,1634.3,1.02372172]
[1693737910382,0.96407207,1634.4,1634.3,1.02372172]
[1693737910592,3.62149602,1634.4,1634.3,1.02372172]
[1693737911009,0.96407207,1634.4,1634.3,1.02372172]
[1693737911205,3.62149602,1634.4,1634.3,1.02372172]
[1693737911601,0.96407207,1634.4,1634.3,1.02372172]
[1693737911806,3.62149602,1634.4,1634.3,1.02372172]
[1693737912013,0.96407207,1634.4,1634.3,1.02372172]
[1693737912217,3.62149081,1634.4,1634.3,1.02372172]
[1693737913103,0.96406628,1634.4,1634.3,1.02372172]
[1693737913275,3.62149081,1634.4,1634.3,1.02372172]
[1693737913988,0.96406628,1634.4,1634.3,1.02372172]
[1693737914170,3.62149081,1634.4,1634.3,1.02372172]
[1693737914375,0.96406628,1634.4,1634.3,1.02372172]
[1693737914579,3.62149081,1634.4,1634.3,1.02372172]
[1693737914972,2.558521,1634.4,1634.3,1.02372172]
[1693737921788,0.96406628,1634.4,1634.3,1.02372172]
[1693737922099,2.558521,1634.4,1634.3,1.02372172]
[1693737922295,0.96406628,1634.4,1634.3,1.02372172]
[1693737922522,3.62149081,1634.4,1634.3,1.02372172]
[1693737922688,2.558521,1634.4,1634.3,1.02372172]
[1693737931845,2.558521,1634.4,1634.3,0.70910047]
[1693737934449,3.62149081,1634.4,1634.3,0.70910047]
[1693737934638,2.558521,1634.4,1634.3,0.70910047]
[1693737934833,3.62149081,1634.4,1634.3,0.70910047]
[1693737935318,2.558521,1634.4,1634.3,0.70910047]
[1693737941757,3.62149081,1634.4,1634.3,0.70910047]
[1693737941930,2.558521,1634.4,1634.3,0.70910047]
[1693737942130,3.62149081,1634.4,1634.3,0.70910047]
[1693737942327,2.558521,1634.4,1634.3,0.70910047]
[1693737942527,3.62149081,1634.4,1634.3,1.20743052]
[1693737942759,1.70570199,1634.4,1634.3,1.20743052]
[1693737942941,0.64273218,1634.5,1634.3,4.20743052]
[1693737943662,1.70558721,1634.5,1634.3,4.20743052]
[1693737943835,0.64273218,1634.5,1634.3,4.20743052]
[1693737944039,0.64273218,1634.5,1634.4,0.42074305]
[1693737944339,1.60679846,1634.6,1634.4,0.42074305]
[1693737944730,1.60679846,1634.6,1634.5,0.70227919]
[1693737944942,3.20107867,1634.6,1634.5,0.70911606]
[1693737945140,1.60679846,1634.6,1634.5,0.70911606]
[1693737945330,3.29986652,1634.6,1634.5,1.24361197]
[1693737945726,2.23701239,1634.6,1634.5,1.24361197]
[1693737945930,0.64273218,1634.6,1634.5,1.24361197]
[1693737946142,2.23701239,1634.6,1634.5,1.24361197]
[1693737947663,3.29986652,1634.6,1634.5,1.24361197]
[1693737948653,2.23701239,1634.6,1634.5,1.24361197]
[1693737948849,3.29986652,1634.6,1634.5,1.24361197]
[1693737949049,2.23701239,1634.6,1634.5,1.24361197]
[1693737949237,1.70558631,1634.6,1634.5,1.24361197]
[1693737949559,0.64273218,1634.6,1634.5,1.24361197]
[1693737952870,1.60679846,1634.7,1634.5,1.24361197]
[1693737953069,0.64273218,1634.7,1634.5,1.24361197]
[1693737953272,0.64273218,1634.7,1634.5,0.54133278]
[1693737953636,0.64273218,1634.7,1634.6,0.70221232]
[1693737953942,0.64273218,1634.7,1634.6,0.70904004]
[1693737956249,1.06277007,1634.7,1634.6,0.70904004]
[1693737956455,1.60679846,1634.8,1634.6,0.70904004]
[1693737956954,1.60679846,1634.8,1634.6,3.22091232]
[1693737957155,1.60679846,1634.8,1634.6,3.77526314]
[1693737958883,1.60679846,1634.8,1634.7,0.00681944]
[1693737959368,4.2637221,1634.8,1634.7,0.00681944]
[1693737959686,3.20095203,1634.8,1634.7,0.00681944]
[1693737959862,3.20095203,1634.8,1634.6,2.5187]
[1693737960070,1.60679846,1634.8,1634.6,2.5187]